bitfinex/quotes_ETHUSD_20250802
["timestamp","ask_amount","ask_price","bid_price","bid_amount"]
[1754164293358,0.001,3403.6,3403.4,0.1472]
[1754164293864,0.001,3403.6,3403.4,1.7066]
[1754164294072,0.001,3403.6,3403.4,2.17109202]
[1754164294261,0.001,3403.6,3403.4,1.7066]
[1754164294562,0.001,3403.6,3403.4,0.1472]
[1754164295936,0.001,3403.6,3403.2,3.0]
[1754164296270,0.001,3403.6,3403.3,0.1472]
[1754164296774,1.3954,3403.8,3403.2,3.3]
[1754164296973,0.1472,3403.8,3403.3,0.1472]
[1754164297170,0.1472,3403.8,3403.4,3.0]
[1754164297344,0.1472,3403.8,3403.4,1.5594]
[1754164297669,0.4563,3404.0,3403.5,5.9381377]
[1754164297670,0.001,3404.0,3403.5,5.9381377]
[1754164297836,0.1482,3404.0,3403.5,0.1472]
[1754164298170,0.1482,3404.0,3403.6,1.5594]
[1754164298937,0.001,3404.0,3403.7,7.49732495]
[1754164299174,0.001,3404.0,3403.9,0.1472]
[1754164299779,0.001,3404.0,3403.9,0.76309139]
[1754164300140,0.001,3404.0,3403.6,5.42848936]
[1754164300141,1.9007,3404.0,3403.3,3.0]
[1754164300367,1.8997,3403.9,3403.3,3.62726132]
[1754164300567,0.1472,3403.6,3403.2,4.3872]
[1754164300877,2.0469,3403.6,3403.2,4.3872]
[1754164301078,2.0469,3403.6,3403.3,3.0]
[1754164301242,2.0469,3403.6,3403.2,4.3872]
[1754164301643,2.0469,3403.6,3403.3,3.0]
[1754164303479,0.1472,3403.6,3403.3,3.0]
[1754164303690,0.4563,3404.0,3403.4,1.5594]
[1754164303843,0.1472,3403.8,3403.4,1.5594]
[1754164305187,1.5916,3403.7,3403.2,0.1472]
[1754164305397,1.75443215,3403.7,3403.2,0.1472]
[1754164305543,1.75443215,3403.7,3402.8,0.21638222]
[1754164305544,0.1472,3403.3,3402.8,0.21638222]
[1754164305746,0.1472,3402.9,3402.3,0.1472]
[1754164305955,0.1472,3402.9,3402.4,3.0]
[1754164306174,0.1472,3402.9,3402.4,1.5594]
[1754164306611,0.16283215,3403.7,3402.5,2.0071]
[1754164306747,0.1472,3403.1,3402.6,0.1472]
[1754164307149,1.5916,3403.1,3402.6,0.1472]
[1754164307387,1.8997,3403.0,3402.6,0.1472]
[1754164307561,1.8997,3403.0,3402.2,2.93924517]
[1754164307765,1.4444,3403.0,3402.2,3.16239547]
[1754164308052,1.4444,3403.0,3402.2,3.97328296]
[1754164308253,0.1472,3402.8,3402.3,0.1472]
[1754164308601,0.1472,3402.8,3402.3,1.7066]
[1754164309164,1.5916,3402.8,3402.3,0.1472]
[1754164310717,1.4444,3402.7,3402.2,3.22579871]
[1754164310919,0.1472,3402.5,3402.2,0.22579871]
[1754164311214,0.1472,3402.5,3402.1,3.1472]
[1754164311215,0.1472,3402.5,3402.1,3.08655722]
[1754164311365,0.1472,3402.5,3402.1,0.1472]
[1754164311564,0.1472,3402.5,3402.1,0.1402]
[1754164312196,1.4198,3402.4,3402.1,0.1402]
[1754164312515,1.4198,3402.3,3402.1,0.1402]
[1754164312721,1.4198,3402.2,3402.1,0.22032333]
[1754164313008,1.567,3402.2,3401.8,0.1472]
[1754164313211,1.567,3402.2,3401.6,0.002]
[1754164313212,0.50334201,3402.1,3401.6,0.002]
[1754164313506,0.1472,3401.9,3401.6,0.002]
[1754164313910,1.4198,3401.8,3401.6,0.002]
[1754164314128,1.4198,3401.8,3401.0,0.4335]
[1754164314285,0.1472,3401.9,3401.4,0.1472]
[1754164314607,0.1472,3402.2,3401.7,3.1472]
[1754164315211,1.567,3402.2,3401.7,3.1472]
[1754164315567,1.567,3402.2,3401.7,0.1472]
[1754164315568,1.4198,3402.1,3401.7,0.1472]
[1754164315769,2.0431,3402.1,3401.5,0.21844702]
[1754164315971,0.1472,3401.9,3401.5,3.0]
[1754164316212,0.1472,3401.9,3401.4,0.1472]
[1754164316506,1.4198,3401.8,3401.4,0.1472]
[1754164316720,1.4198,3401.7,3401.4,0.1472]
[1754164316872,4.727,3402.6,3401.2,3.55365574]
[1754164316873,0.1472,3401.6,3401.2,3.55365574]
[1754164317195,0.1472,3401.6,3401.2,3.1646105]
[1754164317379,0.1472,3401.6,3401.2,3.16463249]
[1754164317587,0.1472,3401.6,3401.2,3.65802154]
[1754164317819,0.1472,3401.6,3401.2,3.64802154]
[1754164318033,0.1472,3401.6,3401.2,0.64802154]
[1754164318333,0.1472,3401.6,3401.2,3.58815364]
[1754164318480,0.1472,3401.6,3401.2,3.58809869]
[1754164318989,0.1472,3401.6,3401.2,3.5881452]
[1754164319247,0.1472,3401.6,3401.2,0.64802154]
[1754164319510,0.1472,3401.6,3401.3,3.0]
[1754164320077,0.1472,3401.6,3401.3,2.94002552]
[1754164320332,0.1472,3401.6,3401.2,4.26711462]
[1754164320544,0.3039,3401.6,3401.2,0.20452154]
[1754164320715,0.1472,3401.4,3401.2,0.20452154]
[1754164320881,0.1472,3401.4,3400.9,0.1472]
[1754164320882,0.1472,3401.4,3401.1,3.6105467]
[1754164321213,0.1472,3401.4,3400.9,6.08757411]
[1754164321530,0.1472,3401.4,3400.9,0.1472]
[1754164321683,0.1472,3401.6,3401.1,0.4335]
[1754164321882,0.1472,3401.6,3401.3,3.0]
[1754164322106,0.1472,3401.6,3401.2,0.64987438]
[1754164323011,0.1472,3401.6,3401.3,3.0]
[1754164323389,0.1472,3401.6,3401.3,0.4335]
[1754164324313,1.4198,3401.8,3401.5,3.0]
[1754164324314,0.1472,3401.8,3401.5,3.0]
[1754164324633,0.1472,3401.8,3401.4,2.93992379]
[1754164324784,0.1472,3402.0,3401.6,0.4335]
[1754164325124,0.1472,3402.0,3401.7,0.4335]
[1754164325934,0.1472,3402.0,3401.5,0.1472]
[1754164326239,0.3039,3402.0,3401.5,0.1472]
[1754164326404,1.4198,3401.9,3401.2,0.21637438]
[1754164326610,1.4198,3402.5,3401.6,5.93979303]
[1754164326912,3.102,3404.0,3401.7,7.88678569]
[1754164326913,4.727,3402.7,3401.7,7.88678569]
[1754164327141,6.1468,3402.7,3402.0,3.0]
[1754164327342,1.4198,3402.7,3402.1,0.4335]
[1754164327538,1.4198,3403.0,3402.1,0.4335]
[1754164327838,1.4198,3403.0,3402.4,3.0]
[1754164328394,1.4198,3403.1,3402.6,3.0]
[1754164328706,1.4198,3403.0,3402.3,3.0]
[1754164328907,1.4198,3403.0,3402.3,3.34941797]
[1754164329186,1.4198,3403.0,3402.3,0.41025558]
[1754164329344,1.4198,3403.0,3402.2,3.4335]
[1754164330099,1.4198,3403.0,3402.2,0.4335]
[1754164330851,1.4198,3403.0,3402.4,3.0]
[1754164331259,1.4198,3403.0,3402.3,3.0]
[1754164331976,7.063,3403.2,3401.9,3.55]
[1754164332264,1.4198,3403.1,3402.4,0.4335]
[1754164332559,1.4198,3403.1,3402.5,3.0]
[1754164332768,0.4666,3403.4,3402.4,3.4335]
[1754164332967,1.4208,3403.6,3403.1,3.0]
[1754164333167,1.4208,3403.6,3402.8,2.93869897]
[1754164333168,0.001,3403.6,3403.2,0.4335]
[1754164333371,0.001,3403.6,3403.4,3.0]
[1754164333670,0.001,3403.6,3403.4,2.93823515]
[1754164333978,0.001,3403.6,3403.3,0.4335]
[1754164333979,0.001,3403.6,3403.5,5.9381519]
[1754164334278,0.001,3403.6,3403.5,3.0]
[1754164334627,0.001,3403.6,3403.5,3.4335]
[1754164335249,0.001,3403.6,3403.5,3.0]
[1754164336731,0.001,3403.6,3403.5,3.1472]
[1754164337955,0.001,3403.6,3403.5,3.37087897]
[1754164338385,1.4208,3403.6,3403.5,3.37087897]
[1754164338692,0.001,3403.6,3403.5,3.37087897]
[1754164340076,0.001,3403.6,3403.5,3.80437897]
[1754164340473,0.001,3403.6,3403.5,3.37087897]
[1754164341966,0.001,3403.6,3403.5,3.83487897]
[1754164342771,0.001,3403.6,3403.5,8.84573993]
[1754164342977,0.001,3403.6,3403.5,13.63573993]
[1754164343394,0.001,3404.0,3403.5,13.63573993]
[1754164343395,0.001,3404.0,3403.9,5.93780663]
[1754164343574,0.001,3404.0,3403.9,6.08500663]
[1754164343761,0.001,3404.0,3403.9,6.54900663]
[1754164343959,0.001,3404.0,3403.9,8.3939972]
[1754164344264,0.001,3404.0,3403.9,9.8228972]
[1754164345509,0.001,3404.0,3403.9,5.3939972]
[1754164346587,0.001,3404.0,3403.9,2.45619057]
[1754164347285,0.001,3404.0,3403.9,5.3939972]
[1754164347879,0.001,3404.0,3403.9,9.8228972]
[1754164348084,0.001,3404.0,3403.9,13.83294619]
[1754164348768,1.5131,3405.1,3404.5,2.93721748]
[1754164348968,0.1472,3405.0,3404.6,2.93720167]
[1754164349310,1.5131,3405.1,3404.6,2.93720167]
[1754164349311,7.061,3406.8,3404.6,4.72]
[1754164349480,1.5131,3405.7,3405.0,3.0]
[1754164349997,1.5131,3405.7,3405.0,0.72383711]
[1754164350302,1.5131,3405.7,3405.0,5.93678947]
[1754164350609,0.4631,3405.6,3405.0,3.0]
[1754164350808,1.5131,3405.5,3405.0,3.0]
[1754164351009,1.9762,3405.4,3404.9,7.72]
[1754164351304,1.9762,3405.4,3404.8,0.72780899]
[1754164351305,1.9762,3405.3,3404.8,0.72780899]
[1754164351675,0.19762,3405.4,3404.5,3.0]
[1754164351676,1.9762,3405.2,3404.5,3.0]
[1754164351874,0.19762,3405.4,3404.7,3.0]
[1754164352076,1.5131,3405.3,3404.7,3.0]
[1754164352607,0.4631,3405.5,3404.5,4.4289]
[1754164352903,0.4631,3405.5,3404.9,3.0]
[1754164353107,1.5131,3405.4,3404.8,3.0]
[1754164353509,1.5131,3405.4,3404.7,4.719]
[1754164353811,1.5131,3405.4,3404.8,3.0]
[1754164354017,0.4631,3405.3,3404.8,3.0]
[1754164354209,1.9762,3405.2,3404.6,3.0]
[1754164354374,1.9762,3405.1,3404.4,7.719]
[1754164354576,1.5131,3405.0,3404.2,7.65551389]
[1754164354888,1.5131,3405.0,3404.3,4.24]
[1754164355400,0.4631,3404.9,3403.5,0.22367897]
[1754164355613,1.54981287,3404.8,3403.4,8.53898673]
[1754164355929,0.4631,3404.7,3403.4,4.718]
[1754164356230,1.70110632,3404.6,3403.4,4.718]
[1754164356400,0.4631,3404.5,3403.4,0.73044547]
[1754164356591,1.54948585,3404.4,3403.2,4.718]
[1754164356791,0.4631,3404.3,3403.1,8.53925908]
[1754164357102,1.5131,3404.2,3403.2,1.04321591]
[1754164357286,0.4631,3404.1,3403.2,1.04321591]
[1754164357484,1.5131,3404.0,3403.2,1.77763199]
[1754164358321,1.5131,3404.0,3403.2,1.9976921]
[1754164359026,1.5131,3404.3,3403.5,2.93807066]
[1754164359276,1.5131,3404.3,3403.5,5.11470469]
[1754164359437,0.1472,3404.1,3403.6,0.1472]
[1754164359602,1.5131,3404.8,3403.7,1.8929]
[1754164359807,1.5131,3404.8,3403.5,0.68580469]
[1754164359808,0.1472,3404.4,3404.2,3.0]
[1754164360005,1.5131,3404.8,3404.1,3.0]
[1754164360189,0.1472,3404.9,3404.3,0.1472]
[1754164360392,0.1472,3404.9,3404.5,0.1472]
[1754164360619,2.01258585,3404.8,3403.6,4.717]
[1754164360933,0.1472,3404.3,3403.8,0.1472]
[1754164361297,1.9762,3404.2,3403.8,0.1472]
[1754164361491,1.9762,3404.1,3403.8,0.1472]
[1754164361692,1.5131,3404.0,3403.8,0.1472]
[1754164362403,1.6603,3404.3,3403.8,0.1472]
[1754164362640,1.5131,3404.2,3403.8,0.1472]
[1754164363444,2.01258585,3404.1,3403.3,3.0]
[1754164363624,0.1472,3403.9,3403.5,0.1472]
[1754164363940,1.9762,3403.8,3403.5,0.1472]
[1754164364459,1.5131,3403.7,3403.5,0.1472]
[1754164364660,1.5131,3403.7,3403.3,3.0]
[1754164364661,1.9762,3403.7,3403.3,3.0]
[1754164364805,1.9762,3403.7,3403.4,0.1472]
[1754164365304,1.5131,3403.6,3403.2,0.95447619]
[1754164365508,0.1472,3403.7,3403.3,0.1472]
[1754164366052,0.1472,3403.7,3403.2,3.15487313]
[1754164366053,1.5131,3403.6,3403.2,0.36368109]
[1754164366210,1.5131,3403.6,3403.2,0.1472]
[1754164366550,0.6103,3403.7,3403.4,2.93823823]
[1754164366551,0.1472,3403.7,3403.4,2.93823823]
[1754164366851,0.1472,3403.9,3403.6,2.93806552]
[1754164367059,0.1472,3403.9,3403.6,4.36696552]
[1754164367224,1.9762,3404.5,3404.0,3.0]
[1754164367412,0.1472,3404.3,3403.8,0.1472]
[1754164367832,0.1472,3404.3,3403.9,3.0]
[1754164368037,0.1472,3404.3,3403.9,5.93780223]
[1754164368343,0.1472,3404.3,3403.8,6.08506784]
[1754164368756,0.1472,3404.3,3403.8,0.1472]
[1754164368757,1.9762,3404.2,3403.8,0.1472]
[1754164368937,2.01258585,3404.1,3403.2,0.21977172]
[1754164369105,0.1472,3403.6,3403.2,0.36697172]
[1754164369305,0.1472,3403.6,3403.2,0.1472]
[1754164369306,1.9762,3403.5,3403.2,0.1472]
[1754164369506,1.9762,3403.5,3402.7,2.93876051]
[1754164369507,0.1472,3403.3,3402.9,3.0]
[1754164369862,1.5131,3403.7,3402.9,3.0]
[1754164370013,0.1472,3403.4,3402.9,3.0]
[1754164370320,0.1472,3403.4,3402.8,4.715]
[1754164370321,1.9762,3403.3,3402.8,0.1472]
[1754164370522,0.03638585,3404.5,3402.7,0.1472]
[1754164370523,2.1234,3403.2,3402.7,0.1472]
[1754164370725,1.5131,3403.1,3402.7,0.1472]
[1754164371237,1.5131,3403.1,3402.7,0.37288585]
[1754164371560,1.9762,3403.0,3402.7,0.22568585]
[1754164371761,1.9762,3402.9,3402.7,0.22568585]
[1754164371964,0.21234,3403.1,3401.9,2.9395005]
[1754164372129,0.21234,3403.1,3402.7,0.22086676]
[1754164372130,1.545,3403.1,3402.7,0.22086676]
[1754164372322,3.0,3404.6,3402.0,4.83553363]
[1754164372323,2.0192,3403.0,3402.0,4.83553363]
[1754164372524,1.545,3402.9,3401.9,2.2888]
[1754164372848,1.545,3402.9,3402.1,2.93936098]
[1754164374390,1.545,3402.9,3402.0,0.70038]
[1754164374594,1.545,3402.9,3402.1,0.22342754]
[1754164374595,0.4742,3402.8,3402.1,0.22342754]
[1754164374756,0.03638585,3402.7,3401.9,3.74166791]
[1754164374961,1.545,3402.7,3401.9,3.0]
[1754164375157,0.4742,3402.6,3401.7,3.0]
[1754164375398,1.58138585,3402.5,3401.7,3.0]
[1754164375604,0.4742,3402.4,3401.6,0.73269048]
[1754164375804,0.4742,3402.4,3401.7,0.22561303]
[1754164376095,1.545,3402.3,3401.3,2.93999069]
[1754164376296,1.545,3402.3,3401.4,1.05962002]
[1754164376872,0.4742,3402.2,3402.0,0.002]
[1754164377395,2.0192,3402.1,3402.0,0.002]
[1754164377896,0.4742,3402.4,3402.0,0.002]
[1754164378124,1.545,3402.1,3402.0,0.002]
[1754164378473,2.0192,3402.1,3402.0,0.002]
[1754164379915,1.545,3402.1,3402.0,0.002]
[1754164380084,1.545,3402.9,3402.0,0.002]
[1754164380289,1.545,3402.7,3402.0,2.94139204]
[1754164380477,1.545,3402.7,3402.0,0.002]
[1754164380684,0.51058585,3402.6,3402.0,0.002]
[1754164381230,1.545,3402.5,3402.0,0.002]
[1754164381411,0.1472,3402.1,3402.0,0.002]
[1754164381887,2.1664,3402.1,3402.0,0.002]
[1754164382086,2.38667858,3402.1,3402.0,0.002]
[1754164382718,2.38667858,3402.1,3400.8,0.1472]
[1754164382917,0.1472,3401.3,3400.8,0.1472]
[1754164383217,1.6922,3401.3,3400.8,0.1472]
[1754164383622,1.6922,3401.3,3400.8,0.36816226]
[1754164383823,1.545,3401.2,3400.8,0.36816226]
[1754164384029,2.0192,3401.2,3400.5,0.7271943]
[1754164384182,0.1472,3401.1,3400.6,0.1472]
[1754164384537,1.545,3401.0,3400.6,0.1472]
[1754164384684,0.6214,3401.1,3400.1,0.35132297]
[1754164384685,1.545,3400.9,3400.1,0.35132297]
[1754164384891,1.6922,3400.9,3400.4,0.1472]
[1754164385082,2.0192,3400.8,3400.4,0.22359877]
[1754164385285,0.1472,3400.5,3400.1,0.002]
[1754164385527,0.1472,3400.3,3400.1,0.002]
[1754164385727,0.1472,3400.3,3400.1,0.22659255]
[1754164385913,0.1472,3400.3,3400.1,0.002]
[1754164386122,0.1472,3400.3,3399.8,0.1472]
[1754164386921,0.1472,3400.3,3399.8,3.46192]
[1754164387107,0.1472,3400.3,3399.8,0.46192]
[1754164387290,0.1472,3400.5,3399.6,3.0]
[1754164387496,2.0192,3400.2,3399.2,0.1472]
[1754164387718,0.1472,3399.7,3399.2,0.1472]
[1754164387927,0.1472,3399.7,3399.3,0.60892149]
[1754164388424,0.1472,3399.8,3399.3,0.60892149]
[1754164388626,1.545,3399.7,3399.3,0.60892149]
[1754164388930,1.545,3399.6,3399.3,0.60892149]
[1754164389239,2.0192,3399.6,3399.2,0.1472]
[1754164389402,0.4742,3399.6,3399.2,0.87478858]
[1754164389604,1.545,3399.5,3399.2,0.1472]
[1754164389815,2.0192,3399.5,3398.9,0.22114747]
[1754164390014,2.0192,3399.5,3399.1,0.1472]
[1754164390399,2.0192,3399.4,3399.1,0.74373068]
[1754164390632,0.6214,3399.4,3399.1,0.74373068]
[1754164390818,1.545,3399.3,3398.9,0.64061475]
[1754164391127,1.545,3399.3,3398.9,0.85642109]
[1754164391527,1.545,3399.9,3399.0,0.65911579]
[1754164391689,0.1472,3399.7,3399.2,0.1472]
[1754164391895,0.1472,3399.7,3399.3,3.0]
[1754164392312,0.1472,3399.7,3399.2,0.1472]
[1754164392514,0.6214,3399.7,3399.2,0.1472]
[1754164392733,1.545,3399.6,3399.2,3.1472]
[1754164392917,0.1472,3399.7,3399.2,3.58683519]
[1754164393750,1.6922,3399.7,3399.3,2.94177759]
[1754164393953,5.02213633,3404.1,3399.2,0.6450043]
[1754164393954,0.1,3402.8,3399.7,3.0]
[1754164394126,0.1472,3400.2,3400.0,2.94113989]
[1754164394338,0.1472,3400.4,3399.9,0.1472]
[1754164394529,1.545,3400.9,3400.0,3.0]
[1754164394753,0.1472,3400.7,3400.2,0.1472]
[1754164395052,1.6922,3400.7,3400.2,0.1472]
[1754164395253,2.1664,3400.7,3400.2,0.1472]
[1754164395448,0.1472,3400.7,3400.2,0.1472]
[1754164395653,0.1472,3400.7,3400.3,3.0]
[1754164395855,0.1472,3400.7,3400.2,3.08817931]
[1754164395856,1.6922,3400.7,3400.2,3.1472]
[1754164396156,1.6922,3400.7,3400.2,3.45601793]
[1754164397057,1.6922,3400.7,3400.2,0.45601793]
[1754164397222,1.6922,3400.7,3400.2,3.39699757]
[1754164397919,2.0192,3401.4,3400.5,3.0]
[1754164398148,1.545,3401.4,3400.9,3.0]
[1754164398351,2.0192,3401.3,3400.9,0.1472]
[1754164398836,1.545,3401.2,3400.9,3.1472]
[1754164399256,1.545,3401.2,3400.9,6.08759773]
[1754164399435,1.545,3401.2,3400.9,3.1472]
[1754164399756,0.1472,3401.4,3400.9,3.08757366]
[1754164400146,1.545,3401.3,3400.9,3.08757366]
[1754164400352,1.545,3401.3,3400.9,3.1472]
[1754164400931,1.545,3401.8,3401.0,2.94023551]
[1754164401235,0.1472,3401.6,3401.1,0.1472]
[1754164401431,1.545,3401.5,3401.1,11.18808216]
[1754164401637,2.0192,3401.4,3401.2,3.0]
[1754164401857,2.1118,3401.3,3401.2,3.0]
[1754164402059,2.1118,3401.3,3401.2,0.2175818]
[1754164402371,2.1118,3401.3,3401.1,11.04088216]
[1754164402545,1.9646,3401.2,3401.1,14.04088216]
[1754164402747,0.1472,3401.3,3401.1,14.04088216]
[1754164402949,1.5058,3401.5,3401.1,15.44497038]
[1754164403147,1.653,3401.5,3401.1,15.44497038]
[1754164403884,0.22027858,3402.1,3401.3,0.1472]
[1754164403885,0.1472,3401.8,3401.3,0.1472]
[1754164404048,0.1472,3401.8,3401.3,3.08724858]
[1754164404246,1.5058,3401.7,3401.3,3.73895107]
[1754164404450,1.5058,3401.7,3401.4,11.036261]
[1754164404779,2.1118,3401.6,3401.4,11.036261]
[1754164404976,1.9646,3401.5,3401.4,11.036261]
[1754164405637,1.9646,3401.5,3401.4,14.036261]
[1754164406377,2.17578,3401.5,3401.4,12.474161]
[1754164407232,2.17578,3401.5,3401.4,9.474161]
[1754164407478,2.17578,3401.5,3401.4,12.474161]
[1754164407645,2.17578,3401.5,3401.4,6.534061]
[1754164408077,6.88578,3401.5,3401.4,9.534061]
[1754164408657,2.17578,3401.5,3401.4,9.534061]
[1754164408861,0.1472,3401.6,3401.4,9.534061]
[1754164410058,0.07566188,3401.5,3401.4,9.534061]
[1754164411375,0.07566188,3401.5,3401.4,13.93582689]
[1754164411576,0.07566188,3401.5,3401.4,10.995861]
[1754164412144,0.07566188,3401.5,3401.4,9.534061]
[1754164413557,2.04026188,3401.5,3401.4,9.534061]
[1754164413858,0.07566188,3401.5,3401.4,9.534061]
[1754164414387,2.18746188,3401.5,3401.4,9.534061]
[1754164415489,0.07566188,3401.5,3401.4,9.534061]
[1754164416002,2.04026188,3401.5,3401.4,9.534061]
[1754164416152,2.25900807,3401.5,3401.4,6.534061]
[1754164416582,2.25900807,3401.5,3401.4,3.594061]
[1754164417363,2.25900807,3401.5,3401.4,6.594061]
[1754164418786,2.04026188,3401.5,3401.4,6.594061]
[1754164418989,0.07566188,3401.5,3401.4,6.594061]
[1754164424116,0.07566188,3401.5,3401.4,10.99582689]
[1754164425512,0.4588,3402.7,3401.5,3.0]
[1754164425710,1.653,3402.6,3401.7,3.0]
[1754164425918,1.653,3402.6,3402.0,0.1472]
[1754164426213,1.653,3402.6,3402.1,3.0]
[1754164426380,2.1118,3402.6,3402.1,13.28226775]
[1754164426717,2.1118,3402.6,3402.1,16.22158041]
[1754164427044,0.1472,3402.6,3402.3,3.0]
[1754164427244,0.1472,3402.8,3402.3,8.32368264]
[1754164427406,0.1472,3402.8,3402.3,9.78548264]
[1754164427919,0.1472,3402.8,3402.3,6.84634677]
[1754164428118,2.00133553,3402.7,3402.2,3.0]
[1754164428319,0.1472,3402.5,3402.2,3.0]
[1754164428829,0.606,3402.5,3402.2,3.0]
[1754164429033,2.1118,3402.5,3402.2,3.0]
[1754164429324,2.1118,3402.5,3402.1,10.28226775]
[1754164430840,2.1118,3402.5,3402.1,13.22156849]
[1754164431343,2.1118,3402.5,3402.2,3.0]
[1754164432048,2.1118,3402.5,3402.2,2.8452]
[1754164432434,2.1118,3402.5,3402.2,2.6293]
[1754164432749,1.9918,3402.4,3402.2,2.3022]
[1754164433054,1.9918,3402.4,3402.2,2.1901]
[1754164434457,1.5548,3402.4,3402.2,2.1901]
[1754164434658,0.437,3402.3,3402.2,2.1901]
[1754164435319,1.5548,3402.4,3402.2,2.1901]
[1754164435652,1.9918,3402.4,3402.2,2.1901]
[1754164436444,1.9918,3402.4,3402.2,0.0606]
[1754164436641,0.1472,3402.5,3402.1,10.28226775]
[1754164436642,1.9918,3402.3,3402.1,10.28226775]
[1754164436843,1.9918,3402.2,3402.1,10.28226775]
[1754164437049,2.139,3402.2,3402.1,10.28226775]
[1754164438164,2.139,3402.2,3402.1,7.34286775]
[1754164438382,2.3529,3402.2,3402.1,7.34286775]
[1754164441700,0.1472,3402.2,3402.1,7.34286775]
[1754164442289,1.5548,3402.5,3402.1,7.34286775]
[1754164442443,4.699,3402.7,3402.1,7.34286775]
[1754164442444,0.1472,3402.3,3402.1,7.34286775]
[1754164443142,1.9918,3402.2,3402.1,7.34286775]
[1754164443357,0.1472,3402.3,3402.1,7.34286775]
[1754164444857,0.5842,3402.3,3402.1,7.34286775]
[1754164445156,2.139,3402.3,3402.1,7.34286775]
[1754164445361,1.9918,3402.2,3402.1,7.34286775]
[1754164446120,2.02854093,3402.2,3402.1,6.86786775]
[1754164446477,1.9918,3402.2,3401.0,4.91758433]
[1754164446806,0.40151351,3402.3,3401.0,0.22058433]
[1754164446807,0.1472,3401.1,3401.0,0.22058433]
[1754164446975,0.1472,3401.1,3400.7,14.11356295]
[1754164447180,0.1472,3401.1,3400.8,1.5592]
[1754164447421,0.1472,3401.1,3400.8,0.21791259]
[1754164447787,0.1472,3401.1,3400.7,15.67276295]
[1754164447987,0.1472,3401.1,3400.7,10.97576295]
[1754164448190,0.1472,3401.1,3400.7,15.67276295]
[1754164448425,0.1472,3401.1,3400.7,12.73246295]
[1754164448727,0.1472,3401.1,3400.7,6.47626295]
[1754164448887,1.702,3401.1,3400.7,6.47626295]
[1754164449088,0.1472,3401.1,3400.7,6.47626295]
[1754164449288,2.02855389,3401.0,3400.7,6.47626295]
[1754164449600,0.1472,3400.8,3400.6,0.22235077]
[1754164449789,2.139,3400.7,3400.2,4.696]
[1754164449986,0.50644849,3401.5,3400.0,0.1472]
[1754164449987,0.1472,3400.5,3400.0,0.1472]
[1754164450191,1.9918,3400.4,3399.9,4.696]
[1754164450421,1.9918,3400.4,3400.0,3.0]
[1754164450621,1.5548,3400.3,3399.8,4.696]
[1754164450802,0.1472,3400.2,3399.8,0.1472]
[1754164451535,0.1472,3400.2,3399.8,3.36893252]
[1754164452042,0.1472,3400.2,3399.7,4.8432]
[1754164452344,0.1472,3400.2,3399.7,6.90965002]
[1754164452648,0.03675605,3400.8,3399.3,1.5592]
[1754164452649,1.9918,3400.1,3399.3,1.5592]
[1754164452941,0.1472,3400.0,3399.5,0.1472]
[1754164453236,0.1472,3400.0,3399.5,0.62]
[1754164453393,0.1472,3400.0,3399.6,1.5592]
[1754164453724,0.1472,3400.0,3399.3,3.68031598]
[1754164453925,0.1472,3400.0,3399.4,0.76378475]
[1754164454133,0.1472,3400.0,3399.4,3.76378475]
[1754164454300,1.5548,3399.9,3399.4,3.76378475]
[1754164454496,1.5548,3399.9,3399.4,3.91098475]
[1754164454992,0.1472,3400.0,3399.5,0.4728]
[1754164455222,0.1472,3400.0,3399.4,2.93831462]
[1754164455634,0.1472,3400.0,3399.9,2.94126297]
[1754164455862,0.437,3400.9,3399.8,4.695]
[1754164455998,1.5548,3400.5,3399.8,4.695]
[1754164456198,1.5548,3400.5,3399.4,3.16801559]
[1754164456425,0.437,3400.4,3399.5,7.63659405]
[1754164456794,1.5548,3400.3,3399.6,4.695]
[1754164457195,0.437,3400.2,3399.6,4.695]
[1754164457395,1.5548,3400.3,3399.6,4.695]
[1754164457639,1.5548,3400.1,3399.5,4.695]
[1754164459337,1.5548,3400.1,3399.4,3.22362967]
[1754164459740,1.5548,3400.1,3399.4,5.94161191]
[1754164459940,1.5548,3400.5,3399.6,2.94152253]
[1754164460239,1.5548,3400.5,3399.5,19.22832725]
[1754164460438,1.9918,3400.5,3399.3,3.0]
[1754164460740,2.02856038,3400.4,3399.5,3.0]
[1754164460891,0.23961642,3400.4,3399.5,3.0]
[1754164461096,1.9918,3400.3,3399.5,3.0]
[1754164461334,1.9918,3400.2,3399.5,3.0]
[1754164461537,0.437,3400.2,3399.5,3.0]
[1754164461696,1.5548,3400.1,3399.5,3.0]
[1754164461906,0.4564,3400.0,3399.5,3.0]
[1754164462224,1.9319,3399.9,3399.5,3.0]
[1754164462440,1.4755,3399.8,3399.5,3.0]
[1754164462597,1.4755,3399.7,3399.4,0.22272173]
[1754164462802,1.4755,3399.7,3399.2,3.0]
[1754164463003,1.4755,3399.7,3399.2,5.86824707]
[1754164463199,0.03675713,3400.7,3398.9,0.72340474]
[1754164463394,1.9319,3399.6,3398.3,14.24364514]
[1754164463595,1.96867011,3399.5,3398.2,0.883935]
[1754164463821,1.96867011,3399.5,3397.6,5.19321577]
[1754164463822,1.9319,3399.4,3397.6,5.19321577]
[1754164464034,1.96867227,3399.3,3397.8,3.68112922]
[1754164464233,1.9319,3399.2,3397.7,3.51932158]
[1754164464533,1.96867444,3399.1,3397.7,3.51932158]
[1754164464718,0.4564,3399.1,3397.9,3.0]
[1754164465029,0.4564,3399.1,3397.9,2.94299401]